[Event "Snabb-SM för veteraner, 65+ 2019"]
[Site "Schackcentrum, Vegagatan 20, Gothenburg, Sweden"]
[Date "2019.10.06"]
[Round "9.8"]
[White "Nyberg, Bo"]
[Black "Andersson, Kaj"]
[Result "1-0"]
[TimeControl "15 minutes + 10 seconds per move from move one"]
[WhiteFideId "1710583"]
[BlackFideId "1709860"]
[WhiteElo "1806"]
[BlackElo "2083"]

1. d4 {[%clk 00:15:18]} {[%emt 00:00:01]} d5 {[%clk 00:15:18]} {[%emt
00:00:01]} 2. Bf4 {[%clk 00:15:24]} {[%emt 00:00:05]} e6 {[%clk 00:15:25]}
{[%emt 00:00:03]} 3. e3 {[%clk 00:15:32]} {[%emt 00:00:01]} Bd6 {[%clk
00:15:34]} {[%emt 00:00:01]} 4. Bxd6 {[%clk 00:15:40]} {[%emt 00:00:02]} Qxd6
{[%clk 00:15:42]} {[%emt 00:00:01]} 5. c3 {[%clk 00:15:49]} {[%emt 00:00:02]}
Nf6 {[%clk 00:15:42]} {[%emt 00:00:10]} 6. Nf3 {[%clk 00:15:55]} {[%emt
00:00:04]} Nbd7 {[%clk 00:15:35]} {[%emt 00:00:16]} 7. Bd3 {[%clk 00:16:00]}
{[%emt 00:00:05]} h6 {[%clk 00:15:27]} {[%emt 00:00:18]} 8. Nbd2 {[%clk
00:16:05]} {[%emt 00:00:05]} O-O {[%clk 00:15:25]} {[%emt 00:00:11]} 9. O-O
{[%clk 00:16:11]} {[%emt 00:00:04]} Re8 {[%clk 00:15:11]} {[%emt 00:00:24]} 10.
e4 {[%clk 00:15:56]} {[%emt 00:00:26]} dxe4 {[%clk 00:15:01]} {[%emt 00:00:20]}
11. Nxe4 {[%clk 00:16:04]} {[%emt 00:00:02]} Nxe4 {[%clk 00:14:48]} {[%emt
00:00:23]} 12. Bxe4 {[%clk 00:16:12]} {[%emt 00:00:02]} Nf6 {[%clk 00:14:46]}
{[%emt 00:00:11]} 13. Bc2 {[%clk 00:16:18]} {[%emt 00:00:04]} c5 {[%clk
00:14:00]} {[%emt 00:00:56]} 14. Re1 {[%clk 00:14:29]} {[%emt 00:01:59]} cxd4
{[%clk 00:14:05]} {[%emt 00:00:05]} 15. Qxd4 {[%clk 00:14:22]} {[%emt
00:00:16]} Qxd4 {[%clk 00:14:03]} {[%emt 00:00:12]} 16. Nxd4 {[%clk 00:14:30]}
{[%emt 00:00:02]} a6 {[%clk 00:13:43]} {[%emt 00:00:29]} 17. h3 {[%clk
00:14:16]} {[%emt 00:00:25]} Bd7 {[%clk 00:13:47]} {[%emt 00:00:06]} 18. Rad1
{[%clk 00:14:10]} {[%emt 00:00:15]} Rad8 {[%clk 00:13:50]} {[%emt 00:00:07]} 19.
Nf3 {[%clk 00:13:33]} {[%emt 00:00:48]} Bc6 {[%clk 00:13:12]} {[%emt 00:00:48]}
20. Ne5 {[%clk 00:13:20]} {[%emt 00:00:23]} Bd5 {[%clk 00:09:57]} {[%emt
00:03:26]} 21. c4 {[%clk 00:13:10]} {[%emt 00:00:20]} Bc6 {[%clk 00:10:06]} 22.
Nxc6 {[%clk 00:13:14]} {[%emt 00:00:06]} bxc6 {[%clk 00:10:14]} {[%emt
00:00:02]} 23. Ba4 {[%clk 00:12:52]} {[%emt 00:00:31]} Rxd1 {[%clk 00:09:58]}
{[%emt 00:00:26]} 24. Rxd1 {[%clk 00:13:01]} {[%emt 00:00:01]} Rb8 {[%clk
00:09:10]} {[%emt 00:00:58]} 25. b3 {[%clk 00:13:05]} {[%emt 00:00:06]} c5
{[%clk 00:07:58]} {[%emt 00:01:23]} 26. f3 {[%clk 00:12:55]} {[%emt 00:00:19]}
Ne8 {[%clk 00:07:00]} {[%emt 00:01:07]} 27. Bxe8 {[%clk 00:12:39]} {[%emt
00:00:27]} Rxe8 {[%clk 00:07:09]} {[%emt 00:00:01]} 28. Rd6 {[%clk 00:12:47]}
{[%emt 00:00:01]} a5 {[%clk 00:06:58]} {[%emt 00:00:21]} 29. Ra6 {[%clk
00:11:50]} {[%emt 00:01:07]} Rc8 {[%clk 00:06:19]} {[%emt 00:00:48]} 30. Rxa5
{[%clk 00:11:52]} {[%emt 00:00:08]} Kf8 {[%clk 00:06:28]} {[%emt 00:00:01]} 31.
Ra7 {[%clk 00:11:51]} {[%emt 00:00:11]} e5 {[%clk 00:06:20]} {[%emt 00:00:18]}
32. Kf2 {[%clk 00:11:57]} {[%emt 00:00:04]} g6 {[%clk 00:06:05]} {[%emt
00:00:26]} 33. Ke3 {[%clk 00:12:01]} {[%emt 00:00:06]} Kg7 {[%clk 00:06:09]}
{[%emt 00:00:06]} 34. Ke4 {[%clk 00:11:16]} {[%emt 00:00:55]} Re8 {[%clk
00:05:45]} {[%emt 00:00:34]} 35. Kd5 {[%clk 00:10:02]} {[%emt 00:01:24]} Kf6
{[%clk 00:05:37]} {[%emt 00:00:17]} 36. Kxc5 {[%clk 00:09:56]} {[%emt
00:00:16]} e4 {[%clk 00:05:30]} {[%emt 00:00:17]} 37. fxe4 {[%clk 00:09:42]}
{[%emt 00:00:24]} Rxe4 {[%clk 00:05:39]} {[%emt 00:00:01]} 38. Ra6+ {[%clk
00:08:53]} {[%emt 00:00:59]} Ke5 {[%clk 00:05:40]} {[%emt 00:00:08]} 39. b4
{[%clk 00:08:37]} {[%emt 00:00:26]} Re2 {[%clk 00:05:46]} {[%emt 00:00:04]} 40.
b5 {[%clk 00:08:42]} {[%emt 00:00:05]} Rxg2 {[%clk 00:05:55]} {[%emt 00:00:01]}
41. b6 {[%clk 00:08:39]} {[%emt 00:00:13]} Rb2 {[%clk 00:05:57]} {[%emt
00:00:07]} 42. Kc6 {[%clk 00:08:42]} {[%emt 00:00:07]} f5 {[%clk 00:06:00]}
{[%emt 00:00:07]} 43. b7 {[%clk 00:08:47]} {[%emt 00:00:05]} f4 {[%clk
00:06:08]} {[%emt 00:00:02]} 44. Rb6 {[%clk 00:08:54]} {[%emt 00:00:03]} Rc2
{[%clk 00:06:01]} {[%emt 00:00:17]} 45. b8=Q+ {[%clk 00:08:58]} {[%emt
00:00:06]} 1-0

[Event "Snabb-SM för veteraner, 65+ 2019"]
[Site "Schackcentrum, Vegagatan 20, Gothenburg, Sweden"]
[Date "2019.10.06"]
[Round "9.9"]
[White "Svensson, Soren"]
[Black "Herrman, Jan"]
[Result "1/2-1/2"]
[TimeControl "15 minutes + 10 seconds per move from move one"]
[WhiteFideId "1714937"]
[BlackFideId "1731882"]
[WhiteElo "1845"]
[BlackElo "1929"]

1. d4 {[%clk 00:15:17]} {[%emt 00:00:02]} Nf6 {[%clk 00:15:16]} {[%emt
00:00:04]} 2. Nf3 {[%clk 00:15:22]} {[%emt 00:00:05]} e6 {[%clk 00:15:19]}
{[%emt 00:00:07]} 3. c4 {[%clk 00:15:29]} {[%emt 00:00:03]} c5 {[%clk
00:15:21]} {[%emt 00:00:08]} 4. d5 {[%clk 00:15:29]} {[%emt 00:00:10]} b5
{[%clk 00:14:59]} {[%emt 00:00:32]} 5. Bg5 {[%clk 00:14:11]} {[%emt 00:01:28]}
exd5 {[%clk 00:13:47]} {[%emt 00:01:22]} 6. cxd5 {[%clk 00:14:04]} {[%emt
00:00:17]} d6 {[%clk 00:13:30]} {[%emt 00:00:27]} 7. e4 {[%clk 00:13:42]}
{[%emt 00:00:32]} Be7 {[%clk 00:13:20]} {[%emt 00:00:20]} 8. Bxb5+ {[%clk
00:13:30]} {[%emt 00:00:22]} Bd7 {[%clk 00:13:24]} {[%emt 00:00:05]} 9. Qa4
{[%clk 00:10:53]} {[%emt 00:02:47]} O-O {[%clk 00:12:49]} {[%emt 00:00:46]} 10.
Nc3 {[%clk 00:10:44]} {[%emt 00:00:19]} Bxb5 {[%clk 00:11:15]} {[%emt
00:01:44]} 11. Qxb5 {[%clk 00:10:37]} {[%emt 00:00:17]} Nbd7 {[%clk 00:10:58]}
{[%emt 00:00:28]} 12. O-O {[%clk 00:10:39]} {[%emt 00:00:08]} Rb8 {[%clk
00:08:46]} {[%emt 00:02:22]} 13. Qe2 {[%clk 00:10:37]} {[%emt 00:00:11]} Nxd5
{[%clk 00:08:37]} {[%emt 00:00:19]} 14. Nxd5 {[%clk 00:08:49]} {[%emt
00:01:58]} Bxg5 {[%clk 00:08:44]} {[%emt 00:00:02]} 15. Qa6 {[%clk 00:08:35]}
{[%emt 00:00:25]} Nb6 {[%clk 00:06:40]} {[%emt 00:02:14]} 16. Rad1 {[%clk
00:07:10]} {[%emt 00:01:34]} Nxd5 {[%clk 00:05:25]} {[%emt 00:01:25]} 17. Rxd5
{[%clk 00:07:05]} {[%emt 00:00:16]} Be7 {[%clk 00:05:17]} {[%emt 00:00:18]} 18.
e5 {[%clk 00:04:50]} {[%emt 00:02:25]} Qb6 {[%clk 00:04:51]} {[%emt 00:00:36]}
19. Qd3 {[%clk 00:04:35]} {[%emt 00:00:25]} Rfd8 {[%clk 00:03:13]} {[%emt
00:01:49]} 20. b3 {[%clk 00:03:49]} {[%emt 00:00:56]} dxe5 {[%clk 00:02:12]}
{[%emt 00:01:11]} 21. Nxe5 {[%clk 00:03:51]} {[%emt 00:00:08]} Rxd5 {[%clk
00:02:01]} {[%emt 00:00:21]} 22. Qxd5 {[%clk 00:03:58]} {[%emt 00:00:02]} Qe6
{[%clk 00:00:46]} {[%emt 00:01:26]} 23. Nc6 {[%clk 00:03:10]} {[%emt 00:00:58]}
Re8 {[%clk 00:00:12]} {[%emt 00:00:44]} 24. Qxe6 {[%clk 00:02:29]} {[%emt
00:00:51]} fxe6 {[%clk 00:00:21]} 25. Nxa7 {[%clk 00:01:25]} {[%emt 00:01:14]}
Ra8 {[%clk 00:00:26]} {[%emt 00:00:04]} 26. Nc6 {[%clk 00:01:32]} {[%emt
00:00:03]} Bf6 {[%clk 00:00:36]} 27. a4 {[%clk 00:01:23]} {[%emt 00:00:19]} c4
{[%clk 00:00:45]} {[%emt 00:00:01]} 28. bxc4 {[%clk 00:00:30]} {[%emt
00:01:03]} Rxa4 {[%clk 00:00:54]} 29. c5 {[%clk 00:00:17]} {[%emt 00:00:23]}
Rc4 {[%clk 00:00:49]} {[%emt 00:00:14]} 30. Nb8 {[%clk 00:00:25]} {[%emt
00:00:03]} Rxc5 {[%clk 00:00:46]} {[%emt 00:00:14]} 31. Nd7 {[%clk 00:00:31]}
{[%emt 00:00:04]} Ra5 {[%clk 00:00:49]} {[%emt 00:00:07]} 32. Nxf6+ {[%clk
00:00:34]} {[%emt 00:00:07]} gxf6 {[%clk 00:00:58]} {[%emt 00:00:01]} 1/2-1/2

[Event "Snabb-SM för veteraner, 65+ 2019"]
[Site "Schackcentrum, Vegagatan 20, Gothenburg, Sweden"]
[Date "2019.10.06"]
[Round "10.1"]
[White "Stroem, Leif"]
[Black "Przysuski, Feliks"]
[Result "0-1"]
[TimeControl "15 minutes + 10 seconds per move from move one"]
[WhiteFideId "1709410"]
[BlackFideId "1712489"]
[WhiteElo "2014"]
[BlackElo "2008"]

1. c4 {[%clk 00:15:19]} c5 {[%emt 00:00:06]} 2. g3 {[%clk 00:15:27]} g6 {[%clk
00:15:13]} {[%emt 00:00:13]} 3. Bg2 {[%clk 00:15:36]} {[%emt 00:00:01]} Bg7
{[%clk 00:15:22]} 4. Nc3 {[%clk 00:15:45]} Nc6 {[%clk 00:15:20]} {[%emt
00:00:14]} 5. e4 {[%clk 00:15:40]} {[%emt 00:00:15]} e6 {[%clk 00:15:19]}
{[%emt 00:00:11]} 6. Nge2 {[%clk 00:15:47]} {[%emt 00:00:04]} Nge7 {[%clk
00:15:27]} {[%emt 00:00:02]} 7. O-O {[%clk 00:15:49]} {[%emt 00:00:08]} O-O
{[%clk 00:15:34]} {[%emt 00:00:02]} 8. d3 {[%clk 00:15:33]} {[%emt 00:00:27]}
Nd4 {[%clk 00:15:41]} {[%emt 00:00:02]} 9. Nxd4 {[%clk 00:15:34]} {[%emt
00:00:09]} cxd4 {[%clk 00:15:45]} {[%emt 00:00:06]} 10. Ne2 {[%clk 00:15:41]}
{[%emt 00:00:03]} Nc6 {[%clk 00:15:53]} {[%emt 00:00:01]} 11. Rb1 {[%clk
00:15:48]} {[%emt 00:00:04]} a5 {[%clk 00:16:02]} 12. a3 {[%clk 00:15:57]}
{[%emt 00:00:02]} Qe7 {[%clk 00:15:39]} {[%emt 00:00:31]} 13. Bd2 {[%clk
00:15:40]} {[%emt 00:00:27]} a4 {[%clk 00:15:39]} {[%emt 00:00:09]} 14. b4
{[%clk 00:15:00]} {[%emt 00:00:51]} axb3 {[%emt 00:00:03]} 15. Rxb3 {[%emt
00:00:01]} Rxa3 {[%clk 00:15:28]} {[%emt 00:00:17]} 16. Qc2 {[%clk 00:14:32]}
{[%emt 00:00:38]} Rxb3 {[%clk 00:15:17]} {[%emt 00:00:21]} 17. Qxb3 {[%clk
00:14:41]} {[%emt 00:00:01]} d6 {[%clk 00:15:22]} {[%emt 00:00:04]} 18. Rb1
{[%clk 00:14:26]} {[%emt 00:00:26]} e5 {[%clk 00:14:35]} {[%emt 00:00:03]} 19.
Nc1 {[%clk 00:14:29]} {[%emt 00:01:02]} Nd8 {[%clk 00:14:24]} {[%emt 00:00:20]}
20. Na2 {[%clk 00:14:18]} {[%emt 00:00:22]} Be6 {[%clk 00:14:26]} {[%emt
00:00:07]} 21. Bb4 {[%clk 00:13:45]} {[%emt 00:00:44]} Qd7 {[%clk 00:14:27]}
{[%emt 00:00:09]} 22. Qa3 {[%clk 00:13:35]} {[%emt 00:00:20]} b5 {[%clk
00:12:27]} {[%emt 00:02:10]} 23. Bxd6 {[%clk 00:13:33]} {[%emt 00:00:13]} bxc4
{[%clk 00:12:35]} {[%emt 00:00:02]} 24. dxc4 {[%clk 00:10:27]} {[%emt
00:03:16]} Re8 {[%clk 00:11:20]} {[%emt 00:01:24]} 25. c5 {[%clk 00:10:03]}
{[%emt 00:00:34]} Nb7 {[%clk 00:09:55]} {[%emt 00:01:34]} 26. Rb6 {[%clk
00:07:19]} {[%emt 00:02:55]} Rc8 {[%clk 00:09:06]} {[%emt 00:00:59]} 27. Bf1
{[%clk 00:06:46]} {[%emt 00:00:43]} Nxd6 {[%clk 00:08:54]} {[%emt 00:00:21]} 28.
Rxd6 {[%clk 00:06:47]} {[%emt 00:00:09]} Qc7 {[%clk 00:08:51]} {[%emt
00:00:12]} 29. Ba6 {[%clk 00:04:33]} {[%emt 00:02:25]} Qxc5 {[%clk 00:08:48]}
{[%emt 00:00:12]} 30. Rd8+ {[%clk 00:02:31]} {[%emt 00:02:12]} Bf8 {[%clk
00:08:44]} {[%emt 00:00:14]} 31. Qxc5 {[%clk 00:02:39]} {[%emt 00:00:03]} Rxc5
{[%clk 00:08:51]} {[%emt 00:00:02]} 32. Nb4 {[%clk 00:02:47]} {[%emt 00:00:03]}
Bh3 {[%clk 00:08:31]} {[%emt 00:00:30]} 33. f4 {[%clk 00:02:56]} {[%emt
00:00:01]} Rc1+ {[%emt 00:00:03]} 34. Kf2 Kg7 {[%clk 00:08:23]} {[%emt
00:00:13]} 35. Nd3 {[%clk 00:02:59]} {[%emt 00:00:07]} Rc2+ {[%clk 00:08:29]}
{[%emt 00:00:03]} 36. Ke1 {[%clk 00:02:54]} {[%emt 00:00:16]} Bg4 {[%clk
00:06:26]} {[%emt 00:02:11]} 37. Nxe5 {[%clk 00:02:59]} {[%emt 00:00:07]} Bb4+
{[%clk 00:06:34]} {[%emt 00:00:02]} 38. Kf1 {[%clk 00:03:01]} {[%emt 00:00:08]}
Bh3+ {[%clk 00:06:36]} {[%emt 00:00:07]} 39. Kg1 {[%clk 00:03:08]} {[%emt
00:00:03]} Rg2+ {[%clk 00:06:26]} {[%emt 00:00:19]} 40. Kh1 {[%clk 00:01:18]}
{[%emt 00:02:01]} Ra2 {[%clk 00:06:27]} {[%emt 00:00:08]} 41. Kg1 {[%clk
00:01:17]} {[%emt 00:00:11]} Rxa6 {[%clk 00:06:34]} {[%emt 00:00:03]} 42. Nd3
{[%clk 00:01:22]} {[%emt 00:00:05]} Ra1+ {[%clk 00:06:36]} {[%emt 00:00:08]} 43.
Kf2 {[%clk 00:01:31]} Bc3 {[%clk 00:06:36]} {[%emt 00:00:12]} 44. g4 {[%clk
00:01:17]} {[%emt 00:00:24]} Bxg4 {[%emt 00:00:13]} 45. Kg3 Rg1+ {[%clk
00:06:15]} {[%emt 00:00:16]} 46. Kf2 {[%clk 00:01:24]} {[%emt 00:00:04]} Rd1
{[%clk 00:06:21]} {[%emt 00:00:03]} 47. Ne5 {[%clk 00:01:32]} {[%emt 00:00:02]}
Be6 {[%clk 00:06:16]} {[%emt 00:00:14]} 48. Ke2 {[%clk 00:01:31]} {[%emt
00:00:13]} Rd2+ {[%clk 00:06:23]} {[%emt 00:00:03]} 49. Kf3 {[%clk 00:01:40]}
{[%emt 00:00:01]} Rxh2 {[%clk 00:06:30]} {[%emt 00:00:02]} 50. Nc6 {[%clk
00:01:28]} {[%emt 00:00:23]} Rh3+ {[%clk 00:06:35]} {[%emt 00:00:04]} 51. Kg2
{[%clk 00:01:36]} {[%emt 00:00:03]} Rd3 {[%clk 00:06:26]} {[%emt 00:00:18]} 52.
Ne5 {[%clk 00:01:28]} {[%emt 00:00:19]} Rd2+ {[%clk 00:06:32]} {[%emt
00:00:04]} 53. Kg3 {[%clk 00:01:37]} Re2 {[%clk 00:06:33]} {[%emt 00:00:10]} 54.
Kf3 {[%clk 00:01:45]} {[%emt 00:00:03]} Re3+ {[%clk 00:06:41]} {[%emt
00:00:02]} 55. Kf2 {[%clk 00:01:52]} {[%emt 00:00:04]} Be1+ {[%clk 00:06:46]}
{[%emt 00:00:03]} 56. Kf1 {[%clk 00:02:00]} {[%emt 00:00:02]} Bh3+ {[%clk
00:06:54]} {[%emt 00:00:02]} 57. Kg1 {[%clk 00:02:10]} Bg3 {[%clk 00:06:55]}
{[%emt 00:00:10]} 0-1

[Event "Snabb-SM för veteraner, 65+ 2019"]
[Site "Schackcentrum, Vegagatan 20, Gothenburg, Sweden"]
[Date "2019.10.06"]
[Round "10.2"]
[White "Alfven, Jorgen"]
[Black "Dolata, Henryk"]
[Result "1-0"]
[TimeControl "15 minutes + 10 seconds per move from move one"]
[WhiteFideId "1715950"]
[BlackFideId "1709046"]
[WhiteElo "1791"]
[BlackElo "2064"]

1. d4 {[%clk 00:15:15]} {[%emt 00:00:04]} e6 {[%clk 00:15:19]} {[%emt
00:00:02]} 2. Nf3 {[%clk 00:15:22]} {[%emt 00:00:03]} d5 {[%clk 00:15:28]}
{[%emt 00:00:02]} 3. g3 {[%clk 00:15:29]} {[%emt 00:00:03]} Nf6 {[%clk
00:15:34]} {[%emt 00:00:04]} 4. Bg2 {[%clk 00:15:37]} {[%emt 00:00:02]} Be7
{[%clk 00:15:36]} {[%emt 00:00:08]} 5. O-O {[%clk 00:15:30]} {[%emt 00:00:17]}
O-O {[%clk 00:15:42]} {[%emt 00:00:04]} 6. b3 {[%clk 00:15:35]} {[%emt
00:00:05]} Nbd7 {[%clk 00:15:06]} {[%emt 00:00:46]} 7. Bb2 {[%clk 00:15:41]}
{[%emt 00:00:04]} b6 {[%clk 00:15:15]} {[%emt 00:00:02]} 8. c4 {[%clk
00:15:39]} {[%emt 00:00:12]} Bb7 {[%clk 00:15:22]} {[%emt 00:00:03]} 9. Nbd2
{[%clk 00:15:14]} {[%emt 00:00:35]} c5 {[%clk 00:15:08]} {[%emt 00:00:25]} 10.
Re1 {[%clk 00:13:41]} {[%emt 00:01:42]} Rc8 {[%clk 00:12:35]} {[%emt 00:02:43]}
11. e3 {[%clk 00:13:28]} {[%emt 00:00:22]} Qc7 {[%clk 00:12:29]} {[%emt
00:00:16]} 12. Rc1 {[%clk 00:13:23]} {[%emt 00:00:15]} Qb8 {[%clk 00:12:32]}
{[%emt 00:00:07]} 13. Qe2 {[%clk 00:12:11]} {[%emt 00:01:22]} Rfe8 {[%clk
00:10:41]} {[%emt 00:02:01]} 14. Ne5 {[%clk 00:11:38]} {[%emt 00:00:43]} dxc4
{[%clk 00:08:58]} {[%emt 00:01:54]} 15. Nxd7 {[%clk 00:10:59]} {[%emt
00:00:49]} Nxd7 {[%clk 00:09:05]} {[%emt 00:00:03]} 16. Nxc4 {[%clk 00:11:06]}
{[%emt 00:00:04]} Bxg2 {[%clk 00:09:06]} {[%emt 00:00:07]} 17. Kxg2 {[%clk
00:11:14]} {[%emt 00:00:03]} Bf6 {[%clk 00:07:14]} {[%emt 00:02:03]} 18. Red1
{[%clk 00:08:26]} {[%emt 00:02:57]} Red8 {[%clk 00:05:49]} {[%emt 00:01:34]} 19.
e4 {[%clk 00:07:01]} {[%emt 00:01:35]} Bxd4 {[%emt 00:03:15]} 20. Bxd4 {[%clk
00:06:20]} {[%emt 00:00:48]} cxd4 {[%clk 00:02:55]} {[%emt 00:00:02]} 21. e5
{[%clk 00:05:12]} {[%emt 00:01:19]} h6 {[%clk 00:01:47]} {[%emt 00:01:18]} 22.
a4 {[%clk 00:04:20]} {[%emt 00:01:02]} Nc5 {[%clk 00:01:36]} {[%emt 00:00:21]}
23. Nd6 {[%clk 00:04:05]} {[%emt 00:00:25]} Rc7 {[%clk 00:01:31]} {[%emt
00:00:16]} 24. Qf3 {[%clk 00:02:56]} {[%emt 00:01:18]} d3 {[%clk 00:01:10]}
{[%emt 00:00:30]} 25. b4 {[%clk 00:02:19]} {[%emt 00:00:48]} Nxa4 {[%clk
00:01:16]} {[%emt 00:00:04]} 26. Rxc7 {[%clk 00:02:26]} {[%emt 00:00:03]} Qxc7
{[%clk 00:01:25]} 27. Rxd3 {[%clk 00:02:18]} {[%emt 00:00:18]} Rd7 {[%clk
00:00:53]} {[%emt 00:00:42]} 28. Qa8+ {[%clk 00:02:09]} {[%emt 00:00:20]} Qd8
{[%clk 00:01:02]} {[%emt 00:00:01]} 29. Qc6 {[%clk 00:02:05]} {[%emt 00:00:13]}
b5 {[%clk 00:00:49]} {[%emt 00:00:23]} 30. Qxb5 {[%clk 00:02:02]} {[%emt
00:00:13]} Nb6 {[%clk 00:00:51]} {[%emt 00:00:08]} 31. Qa5 {[%clk 00:01:36]}
{[%emt 00:00:35]} Qa8+ {[%clk 00:00:51]} {[%emt 00:00:09]} 32. Kg1 {[%clk
00:01:45]} {[%emt 00:00:02]} Nd5 {[%clk 00:00:53]} {[%emt 00:00:09]} 33. f3
{[%clk 00:01:05]} {[%emt 00:00:50]} Qb8 {[%clk 00:00:56]} {[%emt 00:00:07]} 34.
b5 {[%clk 00:01:00]} {[%emt 00:00:15]} Nb6 {[%clk 00:00:50]} {[%emt 00:00:16]}
35. Rc3 {[%clk 00:01:00]} {[%emt 00:00:10]} Nd5 {[%clk 00:00:46]} {[%emt
00:00:14]} 36. Rc8+ {[%clk 00:00:46]} {[%emt 00:00:24]} Qxc8 {[%clk 00:00:47]}
{[%emt 00:00:09]} 37. Nxc8 {[%clk 00:00:55]} {[%emt 00:00:02]} Rc7 {[%clk
00:00:44]} {[%emt 00:00:13]} 38. Nd6 {[%clk 00:00:51]} {[%emt 00:00:13]} Rd7
{[%clk 00:00:35]} {[%emt 00:00:19]} 39. f4 {[%clk 00:00:49]} {[%emt 00:00:13]}
Rc7 {[%clk 00:00:40]} {[%emt 00:00:04]} 40. Kf2 {[%clk 00:00:48]} {[%emt
00:00:10]} Rd7 {[%clk 00:00:47]} {[%emt 00:00:04]} 41. Nc4 {[%clk 00:00:40]}
{[%emt 00:00:18]} Rc7 {[%clk 00:00:46]} {[%emt 00:00:10]} 42. Ne3 {[%clk
00:00:49]} {[%emt 00:00:03]} Nb6 {[%clk 00:00:50]} {[%emt 00:00:07]} 43. Qd2
{[%clk 00:00:51]} {[%emt 00:00:07]} Rd7 {[%clk 00:00:48]} {[%emt 00:00:12]} 44.
Qc3 {[%clk 00:00:55]} {[%emt 00:00:05]} h5 {[%clk 00:00:43]} {[%emt 00:00:16]}
45. Qc6 {[%clk 00:00:59]} {[%emt 00:00:06]} Kf8 {[%clk 00:00:40]} {[%emt
00:00:13]} 46. Nc4 {[%clk 00:01:04]} {[%emt 00:00:05]} 1-0